Cogmind - Beta 10.2 @@@ ROGUE MODE // 2022.01.09 @ 21:55:55 Player: Okkudo Result: Destroyed by Y-45 Defender with Heavy Assault Rifle Performance ------------- Evolutions (1) 500 Regions Visited (3) 600 Robots Destroyed (28) 140 Value Destroyed (542) 542 Prototype IDs (0) 0 Alien Tech Used (0) 0 Bonus (28) 28 TOTAL SCORE: 1810 Bonus ------- Follower Combat Kills 34 Friendly Fire -6 Cogmind --------- Core Integrity 0/400 Matter 300/300 Energy 100/100 System Corruption 0% Temperature Cool (9) Movement Core (300) Ox5 Location -9/Materials Parts ------- > --- POWER (1) -------- (None) > --- PROPULSION (4) --- (None) > --- UTILITY (2) ------ Large Storage Unit > --- WEAPON (2) ------- (None) > --- INVENTORY (10) --- Light Ion Engine Light Ion Engine Hacking Suite Small Laser Peak State ------------ > --- POWER ------------ Light Nuclear Core > --- PROPULSION ------- Aluminum Leg > --- UTILITY ---------- Large Storage Unit Signal Interpreter > --- WEAPON ----------- Small Laser Light Assault Rifle > --- INVENTORY -------- Light Ion Engine Light Ion Engine Hacking Suite Small Laser Mining Laser [Rating: 8] Favorites ----------- Power Ion Engine Engine Ion Engine Power Core Light Nuclear Core Propulsion Light Treads Treads Light Treads Leg Aluminum Leg Utility Signal Interpreter Storage Large Storage Unit Processor Signal Interpreter Weapon Light Assault Rifle Energy Gun Small Laser Ballistic Gun Light Assault Rifle Special Weapon Mining Laser Build | -11 -10 -10 -9 ------- Run | Scr Mat Min Mat Slots Evolved 2 | . . . 2 Power . | . . . . Propulsion 2 | . . . 2 Utility . | . . . . Weapon . | . . . . Parts Attached 21 | 5 9 5 2 Power 6 | 1 3 2 . Engine 5 | 1 3 1 . Core 1 | . . 1 . Reactor . | . . . . Propulsion 4 | 2 . 1 1 Treads 2 | 2 . . . Leg 2 | . . 1 1 Wheel . | . . . . Hover . | . . . . Flight . | . . . . Utility 3 | 1 2 . . Device . | . . . . Storage 2 | 1 1 . . Processor 1 | . 1 . . Hackware . | . . . . Protection . | . . . . Artifact . | . . . . Weapon 8 | 1 4 2 1 Energy Gun 1 | . . 1 . Energy Cannon . | . . . . Ballistic Gun 6 | 1 4 1 . Ballistic Cannon . | . . . . Launcher . | . . . . Special Weapon 1 | . . . 1 Impact Weapon . | . . . . Slashing Weapon . | . . . . Piercing Weapon . | . . . . Special Melee Weapon . | . . . . Unidentified Prototypes . | . . . . Parts Lost 15 | . 4 4 7 Power 3 | . 2 . 1 Propulsion 4 | . . 2 2 Utility 1 | . . . 1 Weapon 7 | . 2 2 3 Highest Loss Streak 7 | . 2 3 7 Average Slot Usage (%) 89 | . 94 87 53 Engine 12 | . 13 12 . Core 1 | . . 2 8 Treads 20 | . 28 14 . Leg 1 | . . 2 9 Storage 13 | . 14 14 11 Processor 11 | . 10 14 11 Energy Gun 1 | . . 2 6 Ballistic Gun 25 | . 27 25 6 Naked Turns . | . . . . Heaviest Build 23 | 11 23 23 23 Greatest Support 40 | 40 40 40 20 Greatest Overweight (x) 7 | . . 7 2 Average Overweight (x) . | . . . 1 Largest Inventory Capacity 10 | 6 10 10 10 Average Capacity 8 | 5 6 10 10 Most Carried 6 | 4 6 6 6 Average Carried 4 | 1 4 5 5 Final Capacity 10 | 6 10 10 10 Final Carried 6 | 4 6 6 4 Class Distribution -------------------- 56% | Scavenger-Mutant 43% | Mutant Dominant Class ---------------- Mutant | -10/Materials Scavenger-Mutant | -10/Mines Scavenger-Mutant | -9/Materials Resources | -11 -10 -10 -9 ----------- Run | Scr Mat Min Mat Matter Collected 689 | 265 302 122 . Remotely . | . . . . Salvage Created 1104 | 76 821 141 66 Parts 64 | 3 51 6 4 Haulers Intercepted 1 | . 1 . . Recyclers Shooed 2 | . 2 . . Parts Field Recycled . | . . . . Retrieved Matter . | . . . . Parts Self-Destructed . | . . . . Prevented . | . . . . Kills | -11 -10 -10 -9 ------- Run | Scr Mat Min Mat Combat Hostiles Destroyed 22 | . 14 7 1 Guns 22 | . 14 7 1 Classes Destroyed 8 | 1 6 1 . Worker 1 | . 1 . . Hauler 1 | . 1 . . Recycler 4 | 1 3 . . Operator 1 | . 1 . . Watcher 2 | . 1 . 1 Swarmer 8 | . 6 2 . Grunt 11 | . 8 2 1 Assembled 3 | . . 3 . Best Kill Streak 4 | 1 4 3 2 Combat Bots Only 4 | . 4 3 1 Max Kills in Single Turn 2 | 1 2 1 1 Gunslinging 1 | . 1 . . Exploded . | . . . . Melee . | . . . . Uniques/NPCs Destroyed . | . . . . Combat | -11 -10 -10 -9 -------- Run | Scr Mat Min Mat Damage Taken 1886 | . 733 292 861 Core 549 | . 95 41 413 Absorbed by Shields . | . . . . Core Remaining (%) 72 | 100 . 45 . Volleys Fired 103 | 5 63 27 8 Largest 2 | 1 2 2 2 Hottest 60 | 20 40 60 60 Shots Fired 182 | 5 115 49 13 Gun 182 | 5 115 49 13 Cannon . | . . . . Launcher . | . . . . Special . | . . . . Kinetic 173 | 5 115 45 8 Thermal 9 | . . 4 5 Explosive . | . . . . Electromagnetic . | . . . . Robot Hit Streak 10 | 2 8 10 7 Robot Miss Streak 6 | 2 3 6 1 Penetration Max . | . . . . Secondary Targets 5 | . 2 2 1 Max Gunslinging Chain 1 | . 1 1 1 Shots Hit Robots 119 | 3 75 31 10 Core Hits 57 | 2 35 14 6 Critical Hits 1 | . 1 . . Critical Kills 1 | . 1 . . Critical Parts Destroyed . | . . . . Melee Attacks . | . . . . Impact . | . . . . Slashing . | . . . . Piercing . | . . . . Sneak Attacks . | . . . . Combat Hostiles . | . . . . Follow-up Attacks . | . . . . Damage Inflicted 1156 | 54 772 248 82 Guns 1147 | 54 770 241 82 Cannons . | . . . . Explosions . | . . . . Melee . | . . . . Ramming 9 | . 2 7 . Kinetic 1079 | 54 770 208 47 Thermal 68 | . . 33 35 Explosive . | . . . . Electromagnetic . | . . . . Impact . | . . . . Slashing . | . . . . Piercing . | . . . . Highest Corruption 1 | . 1 1 . Average Corruption 1 | . 1 1 . Corruption Purged . | . . . . Effects 3 | . . 3 . Message Errors 1 | . . 1 . Energy Discharges 1 | . . 1 . Data Loss (minor) 1 | . . 1 . Overload Shots . | . . . . Overflow Damage . | . . . . Projectiles . | . . . . Explosions . | . . . . Melee . | . . . . Knockbacks . | . . . . Impact . | . . . . Kinetic . | . . . . Secondary . | . . . . Self-Inflicted Damage . | . . . . Shots . | . . . . Rammed 3 | . 1 2 . Targets Rammed 3 | . 1 2 . Kicked . | . . . . Crushed . | . . . . Highest Temperature 90 | . 24 54 90 Average Temperature 22 | . 10 20 35 Received Heat Transfer 705 | . 276 33 396 Siege Activations . | . . . . Robots Corrupted . | . . . . Combat Hostiles . | . . . . Parts Fried . | . . . . Impact Corruptions . | . . . . Robots Melted . | . . . . Combat Hostiles . | . . . . Parts Melted . | . . . . Heat Transferred 150 | . . 75 75 Parts Sabotaged . | . . . . Parts Stolen . | . . . . Parts Stripped . | . . . . Power Chain Reactions . | . . . . Missiles Intercepted . | . . . . Alert | -11 -10 -10 -9 ------- Run | Scr Mat Min Mat Peak Influence 226 | 5 226 215 53 Initial 86 | . 3 86 . Average 96 | 3 108 105 13 Maximum Alert Level 1 | . 1 1 . Low Security (%) 85 | 100 83 85 100 Level 1 14 | . 16 14 . Level 2 . | . . . . Level 3 . | . . . . Level 4 . | . . . . Level 5 . | . . . . High Security . | . . . . Max Security . | . . . . Squads Dispatched 6 | . 5 . 1 Investigation 2 | . 1 . 1 Extermination . | . . . . Reinforcement 4 | . 4 . . Assault . | . . . . Garrison . | . . . . Intercept . | . . . . Construction Impeded . | . . . . Haulers Reinforced . | . . . . Stealth | -11 -10 -10 -9 --------- Run | Scr Mat Min Mat Distress Signals 2 | . 2 . . Communications Jammed . | . . . . Distress Signals . | . . . . Times Spotted 47 | . 28 9 10 Peak Tracking Total 7 | . 5 3 7 Tactical Retreats . | . . . . Traps | -11 -10 -10 -9 ------- Run | Scr Mat Min Mat Traps Triggered . | . . . . Indirectly . | . . . . Trap Hack Attempts . | . . . . Triggered . | . . . . Disarmed 6 | . 6 . . Reprogrammed . | . . . . Reused . | . . . . Traps Extracted . | . . . . Installed . | . . . . Triggered . | . . . . Machines | -11 -10 -10 -9 ---------- Run | Scr Mat Min Mat Machines Disabled . | . . . . Max in Single Turn . | . . . . Machines Sabotaged . | . . . . Garrisons Compromised . | . . . . Overloaded Fab Kills . | . . . . Fab Network Shutdowns . | . . . . Hacking | -11 -10 -10 -9 --------- Run | Scr Mat Min Mat Machines Accessed 5 | . 3 1 1 Terminals 5 | . 3 1 1 Fabricators . | . . . . Repair Stations . | . . . . Recycling Units . | . . . . Scanalyzers . | . . . . Garrison Access . | . . . . Total Hacks 17 | . 11 4 2 Successful 11 | . 8 1 2 Failed 6 | . 3 3 . Catastrophic . | . . . . Database Lockouts . | . . . . Manual 3 | . 2 . 1 Terminals 17 | . 11 4 2 Fabricators . | . . . . Repair Stations . | . . . . Recycling Units . | . . . . Scanalyzers . | . . . . Garrison Access . | . . . . Terminal Hacks 11 | . 8 1 2 Record 1 | . . . 1 Branch Access Points 2 | . 2 . . Locate Traps 2 | . 2 . . Disarm Traps 2 | . 2 . . Hauler Manifests 1 | . 1 . . Zone Layout 3 | . 1 1 1 Fabricator Hacks . | . . . . Repair Station Hacks . | . . . . Recycling Unit Hacks . | . . . . Scanalyzer . | . . . . Garrison Access Hacks . | . . . . Unauthorized Hacks . | . . . . Terminals . | . . . . Fabricators . | . . . . Repair Stations . | . . . . Recycling Units . | . . . . Scanalyzers . | . . . . Garrison Access . | . . . . Data Cores Recovered . | . . . . Used . | . . . . Hacking Detections 4 | . 2 1 1 Full Trace Events 2 | . . 1 1 Feedback Events . | . . . . Feedback Blocked . | . . . . Robot Schematics Acquired . | . . . . Robots Built . | . . . . Matter . | . . . . Time . | . . . . Total Robot Build Rating . | . . . . Part Schematics Acquired . | . . . . Parts Built . | . . . . Matter . | . . . . Time . | . . . . Total Part Build Rating . | . . . . Parts Repaired . | . . . . Time . | . . . . Parts Recycled . | . . . . Recycled Matter . | . . . . Retrieved Matter . | . . . . Retrieved Components . | . . . . Parts Scanalyzed . | . . . . Part Schematics Acquired . | . . . . Parts Damaged . | . . . . Bothacking | -11 -10 -10 -9 ------------ Run | Scr Mat Min Mat Used RIF Installer . | . . . . Robots Hacked . | . . . . Non-combat . | . . . . Combat . | . . . . Robot Hacks Applied . | . . . . Relay Couplers Released . | . . . . Robots Rewired . | . . . . Allies Hacked . | . . . . Hacks Repelled . | . . . . Allies | -11 -10 -10 -9 -------- Run | Scr Mat Min Mat Total Allies 2 | . . 2 . Largest Group 2 | . . 2 1 Highest-Rated Group 50 | . . 50 31 Highest-Rated Ally 31 | . . 31 31 Total Orders . | . . . . Ally Attacks 24 | . . 20 4 Total Damage 320 | . . 254 66 Kills 5 | . . 4 1 Allies Corrupted . | . . . . Allies Melted . | . . . . Intel | -11 -10 -10 -9 ------- Run | Scr Mat Min Mat Robot Analysis Total . | . . . . Derelict Logs Recovered 2 | . . 2 . Drone Launches . | . . . . Drone Recoveries . | . . . . Exploration | -11 -10 -10 -9 ------------- Run | Scr Mat Min Mat Turns Passed 1427 | 75 708 562 82 Spaces Moved 633 | 36 307 265 25 Core 8 | 5 . 3 . Treads 556 | 31 307 218 . Legs 69 | . . 44 25 Wheels . | . . . . Hover . | . . . . Flight . | . . . . Fastest Speed 50 | 50 160 160 120 Average Speed 166 | 144 160 177 170 Slowest Speed 400 | 160 160 400 180 Overloaded Moves . | . . . . Propulsion Burnouts . | . . . . Robots Hopped . | . . . . Cave-ins Triggered . | . . . . Exploration Rate (%) 30 | 5 55 57 6 Regions Visited 3 Branch Regions 1 Pre-discovered Areas 1 | . . 1 . Known Exits Taken 2 | . 1 1 . Unknown Exits Taken 1 | 1 . . . Scrap Searched 2 | . . 2 . Spaces Dug . | . . . . Terrain Destroyed . | . . . . Melee . | . . . . Projectile . | . . . . AOE . | . . . . Terrain Rammed . | . . . . Walls Destroyed . | . . . . Machines Disabled . | . . . . Actions | -11 -10 -10 -9 --------- Run | Scr Mat Min Mat Total 837 | 54 415 315 53 Wait 54 | . 24 12 18 Move 630 | 35 306 264 25 Hop . | . . . . Pick Up 23 | 9 10 4 . Fast Attach . | . . . . Attach 16 | 5 6 3 2 Detach . | . . . . Swap 5 | . 3 2 . Drop 3 | . 2 1 . Fire 103 | 5 63 27 8 Melee . | . . . . Ram . | . . . . Kick . | . . . . Crush 3 | . 1 2 . Escape Stasis . | . . . . Rewire . | . . . . Trap . | . . . . Miscellaneous . | . . . . Route ------- -11/Scrapyard -10/Materials (discovered 2 exits: *Mat / *Min) -10/Mines -9/Materials (discovered 1 exit: Sto) History --------- Turn | Location | Event 13 | -11/Scrapyard | Discovered new exit (range 15) 76 | -11/Scrapyard | Entered Materials 90 | -10/Materials | Identified exit to Mines 303 | -10/Materials | Build established: Mutant 578 | -10/Materials | Discovered new exit (range 8) 784 | -10/Materials | Entered Mines 799 | -10/Mines | Learned location of Mines (-9) 891 | -10/Mines | Build established: Scavenger-Mutant 1026 | -10/Mines | Learned 8 Materials zone layouts 1091 | -10/Mines | Core integrity fell below 50% 1175 | -10/Mines | Assembled infested the area 1260 | -10/Mines | Lost 3 parts (1n2w) 1337 | -10/Mines | Discovered new exit (range 6) 1344 | -10/Mines | Identified exit to Materials 1346 | -10/Mines | Entered Materials 1346 | -9/Materials | Accompanied by 1 ally 1346 | -9/Materials | Evolved 2 slots: Propulsion x2 1347 | -9/Materials | Identified exit to Storage 1355 | -9/Materials | Led the pair of lost Derelicts to an unsafe place 1420 | -9/Materials | Core integrity fell below 50% 1426 | -9/Materials | Core integrity fell below 20% 1428 | -9/Materials | Destroyed by Y-45 Defender with Heavy Assault Rifle Last Messages --------------- 01382_ T-07 Excavator is excavating. 01388_ B-36 Bruiser destroyed. 01390_ 9K-NPZ(g) destroyed. 01390_ W-16 Scout destroyed. 01390_ Switching to secondary target: Y-45 Defender. 01391_ T-07 Excavator is excavating. 01396_ Lgt. Assault Rifle destroyed. 01396_ Sml. Laser destroyed. 01400_ T-07 Excavator is excavating. 01403_ Lgt. Nuclear Core destroyed. 01404_ T-07 Excavator is excavating. 01405_ Aluminum Leg destroyed. 01408_ T-07 Excavator is excavating. 01408_ Mining Laser destroyed. 01413_ T-07 Excavator is excavating. 01419_ Aluminum Leg destroyed. 01421_ T-07 Excavator is excavating. 01421_ G-47 Trooper destroyed. 01426_ T-07 Excavator is excavating. 01428_ Signal Interpreter destroyed. Map ----- +----------------------------------------------------+ | ??????????????????????????????????????????????# | | ??????????????????????########????????????????# | | ??????????????????????# !#????????????????# | | ??????????????????????# !!!#????###########?# | | ??????????????????????# #????# #?# | | ????????????########### ###### #?# | | ????????????# # #?# | | ????????????# # #?? | | ????????????# # #?? | | ????????????####+############## # ""T"" #?? | | ?????????????# # # # """"" #?? | | ?????????????# ""# # # #?? | | ?????????????# T"# # ###/######### | | ?????????????# ""# # | | ?????????????# # + | | ?????????????# # # | | ?????????????###+#### # ########### | | ???????????????# #??# # #?????????# | | ???????????????# #??########### #??######## | | ???????????????# #????????????# ????????????? | | ???????????????# #????????????# ????????????? | | ???????????????# #????????????# ????????????? | | ??????########## #???????????## ?#??????????? | | ??????########## ############# #??????????? | | ??????### #*%= g= g #??????????? | | ??????####t ! g @*%!%=% #??????????? | | ??????#### # Y !Y!%[ #??????????? | | ??????#############;########## #??????????? | | ????????????????? ???????????###??????????? | | ???????????????# #???????????????????????? | | ???????????????# #???????????????????????? | | ???????????????#[[ #???????????????????????? | | ???????????????#[[ #???????????????????????? | | ???????????????#[ #???????????????????????? | | ???????????????###/####???????????????????????? | | ?????????????????# ???????????????????????????? | | ?????????????????#/???????????????????????????? | | ????????????????? !???????????????????????????? | | ????????????????? ????????????????????????????? | | ??????????????????????????????????????????????? | | ??????????????????????????????????????????????? | | ??????????????????????????????????????????????? | | ??????????????????????????????????????????????? | | ??????????????????????????????????????????????? | | # #????# +?????????????????????? | | # #?????####+#####?????????????????????? | | # #### ### ?????????????????????? | | # # ?????????????????????? | | # + ###?????????????????????? | | # # #???????????????????????? | +----------------------------------------------------+ Best States ------------- Heat Dissipation 28 Energy Generation 14 Energy Capacity 250 Matter Stores 300 Matter Capacity 300 Sight Range 16 Terrain Scan Density 10 Evasion (%) 40 Recoil Reduction 2 Item Schematics ----------------- None Robot Schematics ------------------ None Fabricated ------------ Nothing Alien Tech Used ----------------- None Achievements -------------- None Challenges ------------ None Game ------ Seed SuspensionGuidanceStripper Manual? 0 Play Time 00:17:42 Cumulative 22.6 hours Start 2022.01.09 @ 21:39:20 End 2022.01.09 @ 21:55:55 Sessions 1 Manual Loads 0 Difficulty Rogue Special Mode None Game No. 45 Rogue 45 Adventurer 0 Explorer 0 Win Type - Total 0 Types 0/0/0/0/0/0/0/0/0 Lore% 21 Gallery% 21 Achievement% 15 Wizard Run 0 Options --------- ASCII 0 Keyboard 0 Movement Mouse Keybinds 0 Fullscreen 1 Font 12/Terminus Map View 83x54 Tactical HUD 1 Map Filters NONE Filters NONE Steam 1 RUN: 3eadb374-3b15-47ac-a728-cc3d1af70bad